[Event "Early-Titled-Tuesday-Blitz-November-28-2023"]
[Site "Chess.com"]
[Date "2023.11.28"]
[Round "6"]
[White "ViktoriyaTarasova"]
[Black "MaxLeto"]
[Result "0-1"]
[WhiteElo "2360"]
[BlackElo "2548"]
[TimeControl "180+1"]
[EndTime "9:14:26 PST"]
[Termination "MaxLeto won on time"]

1. d4 {[%clk 0:03:00.9]} 1... h5 {[%clk 0:02:37.8]} 2. e4 {[%clk 0:02:59.3]}
2... h4 {[%clk 0:02:37.8]} 3. h3 {[%clk 0:02:58.9]} 3... d5 {[%clk 0:02:36.1]}
4. e5 {[%clk 0:02:54.4]} 4... Bf5 {[%clk 0:02:35.5]} 5. Nf3 {[%clk 0:02:52.7]}
5... e6 {[%clk 0:02:35.6]} 6. c4 {[%clk 0:02:52]} 6... dxc4 {[%clk 0:02:22.6]}
7. Bxc4 {[%clk 0:02:51]} 7... Nd7 {[%clk 0:02:23.2]} 8. Nc3 {[%clk 0:02:47.1]}
8... Nb6 {[%clk 0:02:23.6]} 9. Bb3 {[%clk 0:02:44.4]} 9... Be7 {[%clk
0:02:19.1]} 10. O-O {[%clk 0:02:36.8]} 10... Nh6 {[%clk 0:02:16.1]} 11. Be3
{[%clk 0:02:31.3]} 11... c6 {[%clk 0:02:11.5]} 12. a4 {[%clk 0:02:27.6]} 12...
Nd5 {[%clk 0:02:02.4]} 13. Nxd5 {[%clk 0:02:25.5]} 13... exd5 {[%clk 0:01:57.7]}
14. a5 {[%clk 0:02:19.5]} 14... a6 {[%clk 0:01:56.9]} 15. Bd2 {[%clk 0:02:13.4]}
15... Qd7 {[%clk 0:01:47]} 16. Ne1 {[%clk 0:02:04.5]} 16... O-O-O {[%clk
0:01:36.9]} 17. Rc1 {[%clk 0:01:47.8]} 17... Kb8 {[%clk 0:01:36.4]} 18. Bf4
{[%clk 0:01:46.2]} 18... Ka8 {[%clk 0:01:31.4]} 19. Nd3 {[%clk 0:01:28.2]} 19...
g5 {[%clk 0:01:29.8]} 20. Be3 {[%clk 0:01:28.1]} 20... g4 {[%clk 0:01:29.4]} 21.
Bxh6 {[%clk 0:01:16.5]} 21... Rxh6 {[%clk 0:01:26.5]} 22. hxg4 {[%clk
0:01:11.7]} 22... Bxg4 {[%clk 0:01:25.5]} 23. f3 {[%clk 0:01:12.4]} 23... Bf5
{[%clk 0:01:24]} 24. Nc5 {[%clk 0:01:07.1]} 24... Bxc5 {[%clk 0:01:22.1]} 25.
Rxc5 {[%clk 0:01:07.7]} 25... Rg8 {[%clk 0:01:21.4]} 26. Bc2 {[%clk 0:00:41.2]}
26... Rhg6 {[%clk 0:01:16.1]} 27. Rf2 {[%clk 0:00:39.2]} 27... Rg3 {[%clk
0:01:12.8]} 28. Bxf5 {[%clk 0:00:27.8]} 28... Qxf5 {[%clk 0:01:13.7]} 29. Qc2
{[%clk 0:00:03.4]} 29... Qf4 {[%clk 0:01:05]} 30. Rxc6 {[%clk 0:00:02.7]} 30...
Qxd4 {[%clk 0:00:57.4]} 31. Rc8+ {[%clk 0:00:02.7]} 31... Rxc8 {[%clk
0:00:48.7]} 32. Qxc8+ {[%clk 0:00:03.3]} 32... Ka7 {[%clk 0:00:49.6]} 33. Qc2
{[%clk 0:00:02.7]} 33... h3 {[%clk 0:00:41.9]} 34. Kh2 {[%clk 0:00:02.9]} 34...
Rxg2+ {[%clk 0:00:38.4]} 35. Rxg2 {[%clk 0:00:03.6]} 35... hxg2 {[%clk
0:00:39.3]} 36. Kxg2 {[%clk 0:00:03.8]} 36... Qxe5 {[%clk 0:00:20.4]} 37. Qc5+
{[%clk 0:00:03.4]} 37... Kb8 {[%clk 0:00:21.1]} 38. Qf8+ {[%clk 0:00:03.3]}
38... Kc7 {[%clk 0:00:21.8]} 39. Qxf7+ {[%clk 0:00:01.9]} 39... Kc6 {[%clk
0:00:22.5]} 40. Qg6+ {[%clk 0:00:02.1]} 40... Kb5 {[%clk 0:00:22.7]} 41. Qd3+
{[%clk 0:00:01.9]} 41... Kxa5 {[%clk 0:00:21.9]} 42. Qa3+ {[%clk 0:00:02.6]}
42... Kb6 {[%clk 0:00:22.3]} 43. Qb3+ {[%clk 0:00:02.9]} 43... Kc6 {[%clk
0:00:22.3]} 44. Qc2+ {[%clk 0:00:03.5]} 44... Kd7 {[%clk 0:00:14.2]} 45. Qh7+
{[%clk 0:00:03.3]} 45... Kc8 {[%clk 0:00:14.1]} 46. Qg8+ {[%clk 0:00:03]} 46...
Kc7 {[%clk 0:00:14.7]} 47. Qf7+ {[%clk 0:00:03.4]} 47... Kb8 {[%clk 0:00:15.1]}
48. Qf8+ {[%clk 0:00:02.8]} 48... Kc7 {[%clk 0:00:15.6]} 49. Qc5+ {[%clk
0:00:03.2]} 49... Kd7 {[%clk 0:00:15.4]} 50. Qb6 {[%clk 0:00:03.1]} 50... Qc7
{[%clk 0:00:12.1]} 51. Qd4 {[%clk 0:00:02.7]} 51... Qc4 {[%clk 0:00:10.3]} 52.
Qg7+ {[%clk 0:00:01.7]} 52... Kc6 {[%clk 0:00:10.6]} 53. Kg3 {[%clk 0:00:02.1]}
53... a5 {[%clk 0:00:07.4]} 54. Qf6+ {[%clk 0:00:02.3]} 54... Kb5 {[%clk
0:00:07.6]} 55. Qg7 {[%clk 0:00:02.9]} 55... b6 {[%clk 0:00:05.4]} 56. Qd7+
{[%clk 0:00:03.5]} 56... Kb4 {[%clk 0:00:05.2]} 57. Qf5 {[%clk 0:00:03.6]} 57...
Kb3 {[%clk 0:00:04.3]} 58. Qb1 {[%clk 0:00:03.1]} 58... a4 {[%clk 0:00:04]} 59.
f4 {[%clk 0:00:03.1]} 59... b5 {[%clk 0:00:03.3]} 60. f5 {[%clk 0:00:03.1]}
60... Qd4 {[%clk 0:00:02]} 0-1

[Event "Early-Titled-Tuesday-Blitz-November-28-2023"]
[Site "Chess.com"]
[Date "2023.11.28"]
[Round "6"]
[White "Shuvalov"]
[Black "Nitzan_Steinberg"]
[Result "0-1"]
[WhiteElo "2577"]
[BlackElo "2893"]
[TimeControl "180+1"]
[EndTime "9:14:28 PST"]
[Termination "Nitzan_Steinberg won on time"]

1. d4 {[%clk 0:02:59.4]} 1... Nf6 {[%clk 0:02:59.4]} 2. c4 {[%clk 0:02:58.5]}
2... g6 {[%clk 0:02:59.9]} 3. Nc3 {[%clk 0:02:58.3]} 3... Bg7 {[%clk 0:03:00.5]}
4. e4 {[%clk 0:02:58.5]} 4... d6 {[%clk 0:03:01.1]} 5. Nf3 {[%clk 0:02:59]} 5...
O-O {[%clk 0:03:01.5]} 6. Be2 {[%clk 0:02:59.7]} 6... e5 {[%clk 0:03:01.2]} 7.
O-O {[%clk 0:03:00.2]} 7... Nbd7 {[%clk 0:02:56.7]} 8. Be3 {[%clk 0:02:59.1]}
8... Re8 {[%clk 0:02:54.6]} 9. d5 {[%clk 0:02:58.9]} 9... a5 {[%clk 0:02:54.4]}
10. Ne1 {[%clk 0:02:55.2]} 10... Rf8 {[%clk 0:02:46.4]} 11. Nd3 {[%clk
0:02:51.5]} 11... b6 {[%clk 0:02:47]} 12. g4 {[%clk 0:02:49.5]} 12... Nc5 {[%clk
0:02:41.9]} 13. f3 {[%clk 0:02:49]} 13... h5 {[%clk 0:02:39.6]} 14. Nf2 {[%clk
0:02:42.4]} 14... Kh8 {[%clk 0:02:27.4]} 15. Kg2 {[%clk 0:02:33.2]} 15... Nh7
{[%clk 0:02:23.2]} 16. Qd2 {[%clk 0:02:24.3]} 16... Bf6 {[%clk 0:02:10.1]} 17.
Rg1 {[%clk 0:02:17]} 17... Bg5 {[%clk 0:02:09.4]} 18. Bxg5 {[%clk 0:02:15.6]}
18... Qxg5 {[%clk 0:02:09]} 19. Qxg5 {[%clk 0:02:15]} 19... Nxg5 {[%clk
0:02:09.9]} 20. h4 {[%clk 0:02:14.9]} 20... Nh7 {[%clk 0:02:09]} 21. gxh5 {[%clk
0:01:58.9]} 21... gxh5 {[%clk 0:02:08.9]} 22. Kh2 {[%clk 0:01:59]} 22... Bd7
{[%clk 0:02:04.9]} 23. Nh1 {[%clk 0:01:51.8]} 23... Rg8 {[%clk 0:01:51.4]} 24.
Ng3 {[%clk 0:01:46.8]} 24... Nf6 {[%clk 0:01:41.5]} 25. Bf1 {[%clk 0:01:45.3]}
25... Rg6 {[%clk 0:01:36.6]} 26. Rd1 {[%clk 0:01:43.2]} 26... Rag8 {[%clk
0:01:34.5]} 27. Bh3 {[%clk 0:01:41.4]} 27... Bxh3 {[%clk 0:01:29.9]} 28. Kxh3
{[%clk 0:01:42.3]} 28... Kh7 {[%clk 0:01:24]} 29. Nb5 {[%clk 0:01:35.2]} 29...
Ne8 {[%clk 0:01:13.6]} 30. Kh2 {[%clk 0:01:34.6]} 30... Rf6 {[%clk 0:01:09]} 31.
Nf5 {[%clk 0:01:29]} 31... Rxg1 {[%clk 0:01:08.9]} 32. Rxg1 {[%clk 0:01:29.9]}
32... Nd3 {[%clk 0:01:09.1]} 33. b3 {[%clk 0:01:17.4]} 33... Rg6 {[%clk
0:01:06.8]} 34. Rg3 {[%clk 0:00:58]} 34... Nc1 {[%clk 0:00:59.8]} 35. Nc3 {[%clk
0:00:54.9]} 35... Ng7 {[%clk 0:00:52.2]} 36. Ne7 {[%clk 0:00:50.6]} 36... Rf6
{[%clk 0:00:44.4]} 37. Kg2 {[%clk 0:00:42.8]} 37... Rf4 {[%clk 0:00:43.9]} 38.
Kf2 {[%clk 0:00:37.5]} 38... Nd3+ {[%clk 0:00:23.6]} 39. Ke3 {[%clk 0:00:37.6]}
39... Nb4 {[%clk 0:00:23.2]} 40. Kd2 {[%clk 0:00:34.1]} 40... Kh8 {[%clk
0:00:17.9]} 41. Rh3 {[%clk 0:00:30.9]} 41... Ne8 {[%clk 0:00:14]} 42. a3 {[%clk
0:00:25.4]} 42... Na6 {[%clk 0:00:14.1]} 43. Kc2 {[%clk 0:00:23]} 43... Ng7
{[%clk 0:00:10.2]} 44. Nb5 {[%clk 0:00:19]} 44... f5 {[%clk 0:00:09.4]} 45. Ng6+
{[%clk 0:00:17.8]} 45... Kh7 {[%clk 0:00:09.7]} 46. Nxf4 {[%clk 0:00:18.7]}
46... exf4 {[%clk 0:00:10.2]} 47. Kd3 {[%clk 0:00:15.7]} 47... Kg6 {[%clk
0:00:10.4]} 48. Rh1 {[%clk 0:00:15.2]} 48... Kf6 {[%clk 0:00:10.6]} 49. Rg1
{[%clk 0:00:12.5]} 49... Nc5+ {[%clk 0:00:11]} 50. Kc3 {[%clk 0:00:12.1]} 50...
fxe4 {[%clk 0:00:11.3]} 51. b4 {[%clk 0:00:11.8]} 51... axb4+ {[%clk 0:00:09.5]}
52. axb4 {[%clk 0:00:12.7]} 52... Nd7 {[%clk 0:00:02.7]} 53. fxe4 {[%clk
0:00:12.1]} 53... f3 {[%clk 0:00:03.2]} 54. Kd4 {[%clk 0:00:10.4]} 54... Ne5
{[%clk 0:00:03.2]} 55. Nxc7 {[%clk 0:00:06.7]} 55... Ng4 {[%clk 0:00:03.2]} 56.
Rf1 {[%clk 0:00:05.1]} 56... f2 {[%clk 0:00:02.3]} 57. c5 {[%clk 0:00:03.4]}
57... bxc5+ {[%clk 0:00:02.9]} 58. bxc5 {[%clk 0:00:04.3]} 58... dxc5+ {[%clk
0:00:03.8]} 59. Kxc5 {[%clk 0:00:04.6]} 59... Ke5 {[%clk 0:00:04.7]} 60. d6
{[%clk 0:00:03.7]} 60... Nf6 {[%clk 0:00:03.9]} 61. Kc6 {[%clk 0:00:02.4]} 61...
Nxe4 {[%clk 0:00:01.7]} 62. d7 {[%clk 0:00:01.4]} 62... Nf5 {[%clk 0:00:01.9]}
0-1

[Event "Early-Titled-Tuesday-Blitz-November-28-2023"]
[Site "Chess.com"]
[Date "2023.11.28"]
[Round "6"]
[White "mbachez"]
[Black "DuleMudule"]
[Result "0-1"]
[WhiteElo "2571"]
[BlackElo "2815"]
[TimeControl "180+1"]
[EndTime "9:14:32 PST"]
[Termination "DuleMudule won on time"]

1. e4 {[%clk 0:03:00.9]} 1... c6 {[%clk 0:02:58.2]} 2. Nf3 {[%clk 0:03:00.2]}
2... d5 {[%clk 0:02:59.1]} 3. exd5 {[%clk 0:03:00.4]} 3... cxd5 {[%clk
0:02:59.1]} 4. Ne5 {[%clk 0:03:00.7]} 4... a6 {[%clk 0:02:58.2]} 5. d4 {[%clk
0:03:00]} 5... g6 {[%clk 0:02:57.4]} 6. c4 {[%clk 0:02:57.8]} 6... Nf6 {[%clk
0:02:56.7]} 7. Nc3 {[%clk 0:02:57.2]} 7... Be6 {[%clk 0:02:57.2]} 8. Qb3 {[%clk
0:02:44.9]} 8... Nc6 {[%clk 0:02:45]} 9. Be3 {[%clk 0:02:02.1]} 9... Bg7 {[%clk
0:02:34.9]} 10. Qxb7 {[%clk 0:01:14.4]} 10... Na5 {[%clk 0:02:13.9]} 11. Qb4
{[%clk 0:01:13.1]} 11... dxc4 {[%clk 0:02:03.3]} 12. Nxc4 {[%clk 0:01:10]} 12...
Bxc4 {[%clk 0:01:49]} 13. Bxc4 {[%clk 0:01:08.6]} 13... O-O {[%clk 0:01:49.6]}
14. Be2 {[%clk 0:01:04]} 14... Rb8 {[%clk 0:01:40.2]} 15. Qa3 {[%clk 0:01:03.3]}
15... Qc7 {[%clk 0:01:33]} 16. O-O {[%clk 0:00:56.6]} 16... Nc4 {[%clk
0:01:30.6]} 17. Bxc4 {[%clk 0:00:48.4]} 17... Qxc4 {[%clk 0:01:27.2]} 18. Na4
{[%clk 0:00:36.5]} 18... Ng4 {[%clk 0:01:14]} 19. Rac1 {[%clk 0:00:34.9]} 19...
Qb5 {[%clk 0:01:07.5]} 20. h3 {[%clk 0:00:19]} 20... Nxe3 {[%clk 0:01:04.8]} 21.
fxe3 {[%clk 0:00:19.3]} 21... Bh6 {[%clk 0:01:02.6]} 22. Rf3 {[%clk 0:00:17.8]}
22... e6 {[%clk 0:00:59.7]} 23. Rc2 {[%clk 0:00:15]} 23... a5 {[%clk 0:00:49.4]}
24. Nc5 {[%clk 0:00:14.5]} 24... Rfc8 {[%clk 0:00:48.4]} 25. Kh1 {[%clk
0:00:13.7]} 25... Bf8 {[%clk 0:00:47.7]} 26. Qc3 {[%clk 0:00:11.9]} 26... Rc7
{[%clk 0:00:41.4]} 27. Rcf2 {[%clk 0:00:10.2]} 27... Rbc8 {[%clk 0:00:39.3]} 28.
e4 {[%clk 0:00:05.5]} 28... e5 {[%clk 0:00:38]} 29. Qd3 {[%clk 0:00:04]} 29...
Rxc5 {[%clk 0:00:37]} 30. dxc5 {[%clk 0:00:03.8]} 30... Qxc5 {[%clk 0:00:29.2]}
31. Qf1 {[%clk 0:00:03.6]} 31... f5 {[%clk 0:00:19.5]} 32. Kh2 {[%clk
0:00:03.9]} 32... fxe4 {[%clk 0:00:13.6]} 33. Rf7 {[%clk 0:00:02.9]} 33... Bh6
{[%clk 0:00:13.2]} 34. Re2 {[%clk 0:00:01.6]} 34... Bf4+ {[%clk 0:00:12.3]} 35.
Rxf4 {[%clk 0:00:01.3]} 35... exf4 {[%clk 0:00:12.9]} 36. Qxf4 {[%clk
0:00:01.8]} 36... Qc4 {[%clk 0:00:11.3]} 37. Rxe4 {[%clk 0:00:01.6]} 37... Qxa2
{[%clk 0:00:11.2]} 38. Qe5 {[%clk 0:00:02]} 38... a4 {[%clk 0:00:06.9]} 39. Qe6+
{[%clk 0:00:02.3]} 39... Qxe6 {[%clk 0:00:06.4]} 40. Rxe6 {[%clk 0:00:02.3]}
40... Rb8 {[%clk 0:00:07.3]} 41. Ra6 {[%clk 0:00:02.4]} 41... Rb4 {[%clk
0:00:07.2]} 42. Kg3 {[%clk 0:00:02.2]} 42... Kg7 {[%clk 0:00:07.5]} 43. Kf3
{[%clk 0:00:02.6]} 43... Kh6 {[%clk 0:00:08]} 44. Ra5 {[%clk 0:00:02.8]} 44...
g5 {[%clk 0:00:07.8]} 45. g4 {[%clk 0:00:02.7]} 45... Kg6 {[%clk 0:00:08]} 46.
Ra6+ {[%clk 0:00:02.4]} 46... Kf7 {[%clk 0:00:08.7]} 47. Ke3 {[%clk 0:00:02.6]}
47... Ke7 {[%clk 0:00:08.9]} 48. Kd3 {[%clk 0:00:03]} 48... Rb3+ {[%clk
0:00:08.6]} 49. Ke4 {[%clk 0:00:02.8]} 49... Rxh3 {[%clk 0:00:04.7]} 50. Rxa4
{[%clk 0:00:02.7]} 50... Rb3 {[%clk 0:00:03.8]} 51. Ra7+ {[%clk 0:00:01.6]}
51... Ke6 {[%clk 0:00:03.3]} 52. Ra6+ {[%clk 0:00:02]} 52... Ke7 {[%clk
0:00:02.9]} 53. Ra7+ {[%clk 0:00:02.2]} 53... Kf6 {[%clk 0:00:02.4]} 54. Rxh7
{[%clk 0:00:02]} 54... Rb4+ {[%clk 0:00:01.7]} 55. Kf3 {[%clk 0:00:01.6]} 55...
Rxb2 {[%clk 0:00:01.9]} 56. Ke4 {[%clk 0:00:01.9]} 56... Rb3 {[%clk 0:00:02.7]}
0-1

[Event "Early-Titled-Tuesday-Blitz-November-28-2023"]
[Site "Chess.com"]
[Date "2023.11.28"]
[Round "6"]
[White "Karateloru"]
[Black "JuniorJumper"]
[Result "1/2-1/2"]
[WhiteElo "2789"]
[BlackElo "2571"]
[TimeControl "180+1"]
[EndTime "9:14:33 PST"]
[Termination "Game drawn - insufficient material"]

1. e4 {[%clk 0:03:00.3]} 1... e5 {[%clk 0:02:49.1]} 2. Bc4 {[%clk 0:02:59.2]}
2... Nf6 {[%clk 0:02:49]} 3. d3 {[%clk 0:02:59.1]} 3... Nc6 {[%clk 0:02:47.4]}
4. Nc3 {[%clk 0:02:58.6]} 4... d6 {[%clk 0:02:38.8]} 5. f4 {[%clk 0:02:56.6]}
5... Na5 {[%clk 0:02:29.6]} 6. Bb3 {[%clk 0:02:43.9]} 6... Nxb3 {[%clk
0:02:26.8]} 7. axb3 {[%clk 0:02:44]} 7... c6 {[%clk 0:02:03.5]} 8. Nf3 {[%clk
0:02:42.8]} 8... Bg4 {[%clk 0:02:01.6]} 9. O-O {[%clk 0:02:39.9]} 9... Be7
{[%clk 0:01:50.9]} 10. Qe1 {[%clk 0:02:37.7]} 10... O-O {[%clk 0:01:37.4]} 11.
fxe5 {[%clk 0:02:31]} 11... dxe5 {[%clk 0:01:34.2]} 12. Be3 {[%clk 0:02:30.6]}
12... Nd7 {[%clk 0:01:16]} 13. Kh1 {[%clk 0:02:26.1]} 13... Bxf3 {[%clk
0:01:05.7]} 14. Rxf3 {[%clk 0:02:23.9]} 14... Bc5 {[%clk 0:01:05.7]} 15. Bd2
{[%clk 0:02:07.5]} 15... Kh8 {[%clk 0:01:00.3]} 16. Qg3 {[%clk 0:02:05.6]} 16...
f6 {[%clk 0:00:48.3]} 17. Raf1 {[%clk 0:02:04.5]} 17... Rf7 {[%clk 0:00:46.5]}
18. Qh3 {[%clk 0:02:03.7]} 18... Nf8 {[%clk 0:00:44.7]} 19. Ne2 {[%clk
0:02:02.7]} 19... Qd7 {[%clk 0:00:40.3]} 20. g4 {[%clk 0:02:01.5]} 20... Ne6
{[%clk 0:00:29.3]} 21. Qh5 {[%clk 0:01:50.8]} 21... g6 {[%clk 0:00:25.3]} 22.
Qh4 {[%clk 0:01:45.1]} 22... Raf8 {[%clk 0:00:23.1]} 23. Bh6 {[%clk 0:01:43.4]}
23... Ng7 {[%clk 0:00:20.8]} 24. Rxf6 {[%clk 0:01:34.1]} 24... Rxf6 {[%clk
0:00:08.7]} 25. Rxf6 {[%clk 0:01:32.7]} 25... Rxf6 {[%clk 0:00:05.7]} 26. Qxf6
{[%clk 0:01:32]} 26... Qe7 {[%clk 0:00:05.7]} 27. Qxe7 {[%clk 0:01:16.1]} 27...
Bxe7 {[%clk 0:00:06.6]} 28. Bxg7+ {[%clk 0:01:14.7]} 28... Kxg7 {[%clk
0:00:07.5]} 29. Kg2 {[%clk 0:01:14.9]} 29... Bg5 {[%clk 0:00:06.8]} 30. Kf3
{[%clk 0:01:15]} 30... Kf6 {[%clk 0:00:04.6]} 31. c3 {[%clk 0:01:14]} 31... Ke6
{[%clk 0:00:04.1]} 32. d4 {[%clk 0:01:13.9]} 32... b6 {[%clk 0:00:03.6]} 33. b4
{[%clk 0:01:09.8]} 33... a5 {[%clk 0:00:03.6]} 34. bxa5 {[%clk 0:01:08.5]} 34...
bxa5 {[%clk 0:00:04.5]} 35. b3 {[%clk 0:01:02.6]} 35... Bd2 {[%clk 0:00:04.5]}
36. h3 {[%clk 0:00:55.4]} 36... Kd6 {[%clk 0:00:04.6]} 37. dxe5+ {[%clk
0:00:49.7]} 37... Kxe5 {[%clk 0:00:04.4]} 38. Nd4 {[%clk 0:00:50]} 38... Bxc3
{[%clk 0:00:03.1]} 39. Nxc6+ {[%clk 0:00:47.7]} 39... Kd6 {[%clk 0:00:03.8]} 40.
Nd8 {[%clk 0:00:36.8]} 40... Ke7 {[%clk 0:00:02.6]} 41. Nc6+ {[%clk 0:00:36.1]}
41... Kd6 {[%clk 0:00:02.7]} 42. Na7 {[%clk 0:00:33.7]} 42... Kc5 {[%clk
0:00:02.8]} 43. Kf4 {[%clk 0:00:33.2]} 43... Bd2+ {[%clk 0:00:02.6]} 44. Ke5
{[%clk 0:00:31.5]} 44... Kb4 {[%clk 0:00:03.4]} 45. Kd5 {[%clk 0:00:24.7]} 45...
Kxb3 {[%clk 0:00:03.6]} 46. e5 {[%clk 0:00:25]} 46... a4 {[%clk 0:00:03.9]} 47.
e6 {[%clk 0:00:20.9]} 47... Bb4 {[%clk 0:00:02.5]} 48. Nb5 {[%clk 0:00:17.8]}
48... a3 {[%clk 0:00:02.5]} 49. Nxa3 {[%clk 0:00:14.2]} 49... Bxa3 {[%clk
0:00:03.4]} 50. Kc6 {[%clk 0:00:14.2]} 50... Kc4 {[%clk 0:00:04]} 51. Kd7 {[%clk
0:00:14.8]} 51... Kd5 {[%clk 0:00:04.8]} 52. e7 {[%clk 0:00:15.2]} 52... Bxe7
{[%clk 0:00:05.6]} 53. Kxe7 {[%clk 0:00:15.5]} 53... Ke5 {[%clk 0:00:06.5]} 54.
Kf7 {[%clk 0:00:15.3]} 54... Kf4 {[%clk 0:00:04.3]} 55. Kg7 {[%clk 0:00:15.4]}
55... h5 {[%clk 0:00:04.2]} 56. Kxg6 {[%clk 0:00:12.6]} 56... hxg4 {[%clk
0:00:04.4]} 57. hxg4 {[%clk 0:00:12.9]} 57... Kxg4 {[%clk 0:00:05.3]} 1/2-1/2

[Event "Early-Titled-Tuesday-Blitz-November-28-2023"]
[Site "Chess.com"]
[Date "2023.11.28"]
[Round "6"]
[White "wqws"]
[Black "Atousa1"]
[Result "1/2-1/2"]
[WhiteElo "2589"]
[BlackElo "2464"]
[TimeControl "180+1"]
[EndTime "9:14:35 PST"]
[Termination "Game drawn by repetition"]

1. e4 {[%clk 0:03:00.9]} 1... c5 {[%clk 0:02:56.6]} 2. Nf3 {[%clk 0:03:01.1]}
2... e6 {[%clk 0:02:56.7]} 3. Nc3 {[%clk 0:03:02]} 3... a6 {[%clk 0:02:56.5]} 4.
a4 {[%clk 0:03:02.1]} 4... Nc6 {[%clk 0:02:51]} 5. g3 {[%clk 0:03:01.3]} 5... d5
{[%clk 0:02:48.1]} 6. exd5 {[%clk 0:02:59.9]} 6... exd5 {[%clk 0:02:48.2]} 7.
Bg2 {[%clk 0:03:00.8]} 7... Nf6 {[%clk 0:02:48.7]} 8. O-O {[%clk 0:03:01.3]}
8... Be7 {[%clk 0:02:48.4]} 9. d4 {[%clk 0:03:01.5]} 9... cxd4 {[%clk
0:02:43.3]} 10. Nxd4 {[%clk 0:03:01.7]} 10... O-O {[%clk 0:02:44]} 11. h3 {[%clk
0:02:59.3]} 11... Re8 {[%clk 0:02:43.8]} 12. Re1 {[%clk 0:02:57.8]} 12... Nxd4
{[%clk 0:02:22.6]} 13. Qxd4 {[%clk 0:02:57.7]} 13... Bf5 {[%clk 0:02:22.6]} 14.
Bg5 {[%clk 0:02:49.6]} 14... Bxc2 {[%clk 0:02:18.7]} 15. Re2 {[%clk 0:02:49.6]}
15... Be4 {[%clk 0:02:05.8]} 16. Rae1 {[%clk 0:02:46.8]} 16... h6 {[%clk
0:01:53.8]} 17. Bxe4 {[%clk 0:02:32.5]} 17... dxe4 {[%clk 0:01:50.1]} 18. Bxf6
{[%clk 0:02:32.4]} 18... Bxf6 {[%clk 0:01:49.6]} 19. Qxd8 {[%clk 0:02:32.7]}
19... Rexd8 {[%clk 0:01:41.6]} 20. Nxe4 {[%clk 0:02:33.6]} 20... Bd4 {[%clk
0:01:41.9]} 21. Rd1 {[%clk 0:02:25.7]} 21... Be5 {[%clk 0:01:13.2]} 22. Red2
{[%clk 0:02:22.4]} 22... Rxd2 {[%clk 0:01:12.3]} 23. Rxd2 {[%clk 0:02:23.3]}
23... Rc8 {[%clk 0:01:08.7]} 24. f4 {[%clk 0:02:15.2]} 24... Bf6 {[%clk
0:01:02.1]} 25. Kf2 {[%clk 0:02:07]} 25... Rc4 {[%clk 0:00:56.4]} 26. Nxf6+
{[%clk 0:01:53.2]} 26... gxf6 {[%clk 0:00:57.3]} 27. b3 {[%clk 0:01:48.9]} 27...
Rc3 {[%clk 0:00:53.9]} 28. Rb2 {[%clk 0:01:46.3]} 28... b5 {[%clk 0:00:51.3]}
29. axb5 {[%clk 0:01:45.7]} 29... axb5 {[%clk 0:00:52.2]} 30. b4 {[%clk
0:01:46.2]} 30... f5 {[%clk 0:00:52.5]} 31. Rd2 {[%clk 0:01:44.2]} 31... Rc4
{[%clk 0:00:52.2]} 32. Rd5 {[%clk 0:01:44.3]} 32... Rxb4 {[%clk 0:00:52.3]} 33.
Rxf5 {[%clk 0:01:44.9]} 33... Kg7 {[%clk 0:00:52.9]} 34. Kf3 {[%clk 0:01:45]}
34... Rb3+ {[%clk 0:00:52.8]} 35. Kg4 {[%clk 0:01:44.8]} 35... b4 {[%clk
0:00:50.7]} 36. Rb5 {[%clk 0:01:45.2]} 36... Rb1 {[%clk 0:00:50.8]} 37. Rb6
{[%clk 0:01:44.7]} 37... b3 {[%clk 0:00:43.6]} 38. Kf5 {[%clk 0:01:44.8]} 38...
b2 {[%clk 0:00:40.2]} 39. g4 {[%clk 0:01:45.2]} 39... Rh1 {[%clk 0:00:17.1]} 40.
Rxb2 {[%clk 0:01:44.2]} 40... Rxh3 {[%clk 0:00:17.7]} 41. Rb7 {[%clk 0:01:42.6]}
41... Ra3 {[%clk 0:00:17.1]} 42. Rb5 {[%clk 0:01:39.9]} 42... Ra4 {[%clk
0:00:17.1]} 43. Ke5 {[%clk 0:01:39.6]} 43... Ra1 {[%clk 0:00:16.8]} 44. Ke4
{[%clk 0:01:27.8]} 44... Ra4+ {[%clk 0:00:15.9]} 45. Kf5 {[%clk 0:01:27.9]}
45... Ra1 {[%clk 0:00:15.7]} 46. Rd5 {[%clk 0:01:28.4]} 46... Rb1 {[%clk
0:00:15.9]} 47. Rc5 {[%clk 0:01:28.6]} 47... Ra1 {[%clk 0:00:16.4]} 48. Rb5
{[%clk 0:01:29]} 48... Rc1 {[%clk 0:00:16.8]} 49. Re5 {[%clk 0:01:29.3]} 49...
Ra1 {[%clk 0:00:17.1]} 50. Rd5 {[%clk 0:01:26.3]} 50... Rb1 {[%clk 0:00:17.3]}
51. Ke5 {[%clk 0:01:26.6]} 51... Re1+ {[%clk 0:00:17.2]} 52. Kd4 {[%clk
0:01:26.9]} 52... Rg1 {[%clk 0:00:16.3]} 53. g5 {[%clk 0:01:21.3]} 53... hxg5
{[%clk 0:00:16]} 54. fxg5 {[%clk 0:01:21.6]} 54... Kg6 {[%clk 0:00:16.2]} 55.
Ke4 {[%clk 0:01:21.2]} 55... Rxg5 {[%clk 0:00:16]} 56. Rd6+ {[%clk 0:01:21.8]}
56... f6 {[%clk 0:00:15.4]} 57. Kf4 {[%clk 0:01:22.2]} 57... Rg1 {[%clk
0:00:15.6]} 58. Rd5 {[%clk 0:01:21.7]} 58... Rf1+ {[%clk 0:00:15.9]} 59. Kg3
{[%clk 0:01:20.8]} 59... Ra1 {[%clk 0:00:15.9]} 60. Kf3 {[%clk 0:01:19.7]} 60...
Ra4 {[%clk 0:00:16.4]} 61. Rb5 {[%clk 0:01:19.2]} 61... Rc4 {[%clk 0:00:16.4]}
62. Ra5 {[%clk 0:01:19.3]} 62... f5 {[%clk 0:00:16.4]} 63. Kg3 {[%clk
0:01:17.7]} 63... Kg5 {[%clk 0:00:16.8]} 64. Ra3 {[%clk 0:01:16.4]} 64... Rd4
{[%clk 0:00:16.7]} 65. Kf3 {[%clk 0:01:16.4]} 65... Re4 {[%clk 0:00:16.7]} 66.
Rb3 {[%clk 0:01:15.9]} 66... Re1 {[%clk 0:00:17]} 67. Rb4 {[%clk 0:01:15.9]}
67... Re6 {[%clk 0:00:17.4]} 68. Ra4 {[%clk 0:01:15.5]} 68... Rd6 {[%clk
0:00:17.9]} 69. Rb4 {[%clk 0:01:15.1]} 69... Rd1 {[%clk 0:00:18.2]} 70. Ra4
{[%clk 0:01:14.2]} 70... Kf6 {[%clk 0:00:18.7]} 71. Ra5 {[%clk 0:01:14]} 71...
Kg5 {[%clk 0:00:17.3]} 72. Ra4 {[%clk 0:01:14]} 72... Rd5 {[%clk 0:00:16.6]} 73.
Rb4 {[%clk 0:01:14]} 73... Kf6 {[%clk 0:00:17]} 74. Ra4 {[%clk 0:01:14.2]} 74...
Ke5 {[%clk 0:00:17.5]} 75. Ke3 {[%clk 0:01:13.3]} 75... Rc5 {[%clk 0:00:17.3]}
76. Kf3 {[%clk 0:01:11.8]} 76... Rb5 {[%clk 0:00:17.6]} 77. Ke3 {[%clk 0:01:12]}
77... Rb3+ {[%clk 0:00:17.5]} 78. Kf2 {[%clk 0:01:12.3]} 78... Rc3 {[%clk
0:00:17.6]} 79. Ke2 {[%clk 0:01:12.4]} 79... Kf6 {[%clk 0:00:18]} 80. Kf2 {[%clk
0:01:12.4]} 80... Kg5 {[%clk 0:00:18.6]} 81. Kg2 {[%clk 0:01:09.1]} 81... f4
{[%clk 0:00:18.6]} 82. Ra8 {[%clk 0:01:04.5]} 82... Rc2+ {[%clk 0:00:14.2]} 83.
Kf3 {[%clk 0:01:04.3]} 83... Rc3+ {[%clk 0:00:14.8]} 84. Kf2 {[%clk 0:01:04.6]}
84... Rc5 {[%clk 0:00:13.2]} 85. Rg8+ {[%clk 0:01:04.6]} 85... Kf5 {[%clk
0:00:13.7]} 86. Rf8+ {[%clk 0:01:05.1]} 86... Ke4 {[%clk 0:00:14.3]} 87. Re8+
{[%clk 0:01:05.7]} 87... Re5 {[%clk 0:00:13.7]} 88. Rxe5+ {[%clk 0:01:05.5]}
88... Kxe5 {[%clk 0:00:14.6]} 89. Ke2 {[%clk 0:01:05.9]} 89... Kf5 {[%clk
0:00:15.5]} 90. Kf3 {[%clk 0:01:06.1]} 90... Ke5 {[%clk 0:00:15.8]} 91. Kf2
{[%clk 0:01:06.7]} 91... Ke4 {[%clk 0:00:16.7]} 92. Ke2 {[%clk 0:01:07.2]} 92...
f3+ {[%clk 0:00:17.5]} 93. Kf2 {[%clk 0:01:07.8]} 93... Kf4 {[%clk 0:00:18.4]}
94. Kf1 {[%clk 0:01:08.4]} 94... Ke3 {[%clk 0:00:19.2]} 95. Ke1 {[%clk
0:01:08.5]} 95... Ke4 {[%clk 0:00:20.1]} 96. Kf2 {[%clk 0:01:08.6]} 96... Kf4
{[%clk 0:00:21]} 97. Kf1 {[%clk 0:01:08.9]} 97... Kg4 {[%clk 0:00:21.9]} 98. Kf2
{[%clk 0:01:08.9]} 98... Kf4 {[%clk 0:00:22.6]} 1/2-1/2